bitfinex-derivatives/quotes_ETHF0:USTF0_20251028
["timestamp","ask_amount","ask_price","bid_price","bid_amount"]
[1761624544429,0.43978,4093.1,4093.0,0.00286243]
[1761624544618,0.43983,4092.6,4092.5,0.4663]
[1761624544820,0.98662809,4092.6,4092.5,0.4663]
[1761624545322,0.43983,4092.6,4092.5,0.4663]
[1761624545624,0.44294782,4092.6,4092.5,0.46807893]
[1761624545817,0.98914721,4092.6,4092.5,0.46807893]
[1761624546129,0.4399,4091.9,4091.8,0.3332]
[1761624546331,0.43994,4091.6,4091.0,0.1298]
[1761624546827,0.43994,4091.6,4091.5,0.4588]
[1761624547024,0.43994,4091.6,4091.5,0.46187459]
[1761624548023,0.43999,4091.1,4091.0,0.1298]
[1761624548227,0.43999,4091.1,4091.0,0.4588]
[1761624548436,0.44002,4090.8,4090.7,0.329]
[1761624548730,0.44004,4090.6,4090.5,0.4588]
[1761624549025,0.44004,4090.6,4090.5,0.46107947]
[1761624549930,0.44004,4090.6,4090.5,0.68347947]
[1761624550430,0.44004,4090.6,4090.5,0.89727947]
[1761624550730,1.26019048,4091.3,4091.1,0.329]
[1761624551127,0.43998,4091.2,4091.1,0.329]
[1761624555330,0.43998,4091.2,4091.1,0.7652]
[1761624557932,0.43994,4091.6,4091.5,0.9026]
[1761624567131,0.43993,4091.7,4091.6,0.329]
[1761624567336,0.43993,4091.7,4091.6,0.7652]
[1761624569236,0.4399,4092.0,4091.9,0.9913]
[1761624569437,0.4399,4092.0,4091.9,1.2051]
[1761624570133,0.4399,4092.0,4091.9,0.5514]
[1761624570331,0.43994,4091.6,4091.5,0.1374]
[1761624570839,0.43994,4091.6,4091.5,0.4664]
[1761624571432,0.43994,4091.6,4091.5,0.6888]
[1761624572444,0.43994,4091.6,4091.5,0.9026]
[1761624576335,0.43994,4091.6,4091.5,0.6888]
[1761624576934,0.43994,4091.6,4091.5,0.8998]
[1761624577135,0.43994,4091.6,4091.5,1.62271782]
[1761624577342,1.09974,4092.1,4091.5,2.06266782]
[1761624577539,0.43993,4091.7,4091.6,0.86614]
[1761624577738,0.43993,4091.7,4091.6,1.19534]
[1761624578844,0.43993,4091.7,4091.6,2.24725782]
[1761624579946,0.44294782,4092.6,4092.5,0.6787]
[1761624580248,0.98627722,4092.6,4092.5,0.6787]
[1761624581339,0.98627722,4092.6,4092.5,0.8897]
[1761624581855,0.44294782,4092.6,4092.5,0.8897]
[1761624582042,0.00311782,4092.6,4092.5,2.38145782]
[1761624582348,1.0992,4094.0,4093.5,0.1343]
[1761624582541,0.54347531,4093.9,4093.8,0.7554]
[1761624583438,0.54627791,4093.9,4093.8,0.75847356]
[1761624585745,0.0028026,4093.9,4093.8,0.75847356]
[1761624586952,0.0028026,4093.9,4093.8,0.73466068]
[1761624588145,1.05472042,4093.9,4093.8,0.73466068]
[1761624589951,0.0028026,4093.9,4093.8,0.73466068]
[1761624591454,0.0028026,4093.9,4093.8,1.7865785]
[1761624593054,0.4424926,4093.9,4093.8,1.7865785]
[1761624594056,0.4424926,4093.9,4093.8,2.2262785]
[1761624595757,0.4424926,4093.9,4093.8,1.7865785]
[1761624596159,0.4424926,4093.9,4093.8,2.2262785]
[1761624597459,0.43965,4094.3,4094.2,0.7554]
[1761624597646,1.49142782,4095.6,4095.5,0.4635]
[1761624598554,1.49365921,4095.6,4095.5,0.4635]
[1761624600358,0.44174139,4095.6,4095.5,0.8897]
[1761624600757,1.49365921,4095.6,4095.5,0.8897]
[1761624600971,0.44174139,4095.6,4095.5,0.8897]
[1761624601272,0.00223139,4095.6,4095.5,1.32922]
[1761624601966,0.43946,4096.1,4096.0,0.5605]
[1761624602173,0.43946,4096.1,4096.0,0.8897]
[1761624603065,0.44124647,4096.1,4096.0,0.8897]
[1761624605471,0.00178647,4096.1,4096.0,0.8897]
[1761624605670,0.43942,4096.4,4096.3,0.7567]
[1761624605865,0.43941,4096.6,4096.5,0.1353]
[1761624606070,0.43941,4096.6,4096.5,0.892]
[1761624606668,0.00210228,4096.6,4096.5,1.33141]
[1761624607275,1.09822,4097.7,4096.8,0.43937]
[1761624607477,0.43926,4097.9,4097.7,0.5563]
[1761624607683,0.43926,4097.9,4097.8,0.3432]
[1761624608069,0.43926,4097.9,4097.8,0.5563]
[1761624608271,0.44111568,4097.9,4097.8,0.55920907]
[1761624611775,1.18081568,4097.9,4097.8,9.07e-06]
[1761624611973,1.71981043,4097.9,4097.8,9.07e-06]
[1761624612277,0.8587,4096.6,4096.5,0.5637]
[1761624612474,0.4394,4096.6,4096.5,0.5637]
[1761624613170,0.4394,4096.6,4096.5,0.5657138]
[1761624613973,0.4394,4096.6,4096.5,0.9089138]
[1761624616280,0.8587,4096.6,4096.5,0.9089138]
[1761624617077,0.4394,4096.6,4096.5,0.9089138]
[1761624621075,1.09827,4097.5,4097.1,0.8031]
[1761624621283,0.4393,4097.5,4097.4,0.8031]
[1761624621477,0.6579,4097.5,4097.4,0.8031]
[1761624622581,0.4393,4097.5,4097.4,0.8031]
[1761624622978,0.6579,4097.5,4097.4,0.8031]
[1761624623278,0.4393,4097.5,4097.4,0.8031]
[1761624624179,0.44111568,4097.9,4097.8,0.8031]
[1761624627178,2.29274541,4099.1,4098.5,0.1383]
[1761624627378,2.29274541,4099.1,4098.5,1.64481128]
[1761624627379,0.43919,4098.6,4098.5,1.64481128]
[1761624627579,0.65779,4098.6,4098.5,0.5962]
[1761624627875,0.87229,4098.6,4098.5,0.9414]
[1761624628285,1.416123,4098.6,4098.5,0.9414]
[1761624629181,0.87502478,4098.6,4098.5,0.9414]
[1761624629378,1.41632629,4098.6,4098.5,0.9414]
[1761624631786,1.20182629,4098.6,4098.5,0.9414]
[1761624632178,1.73432629,4098.6,4098.5,0.9414]
[1761624632387,1.41632629,4098.6,4098.5,0.9414]
[1761624632583,1.20182629,4098.6,4098.5,0.9414]
[1761624633283,0.98322629,4098.6,4098.5,0.9414]
[1761624633989,1.20182629,4098.6,4098.5,0.9414]
[1761624635591,0.98322629,4098.6,4098.5,0.9414]
[1761624635886,0.44192478,4098.6,4098.5,0.9414]
[1761624636680,1.21102478,4098.6,4098.5,0.9414]
[1761624637092,0.88282478,4098.6,4098.5,0.9414]
[1761624642691,0.44192478,4098.6,4098.5,0.9414]
[1761624642897,0.4391,4099.4,4099.3,0.7581]
[1761624643092,0.88,4099.4,4099.3,0.7581]
[1761624643397,1.2082,4099.4,4099.3,0.7581]
[1761624643996,1.21096414,4099.4,4099.3,0.7581]
[1761624644791,0.88276414,4099.4,4099.3,0.7581]
[1761624645492,0.88276414,4099.4,4099.0,0.1379]
[1761624645493,0.43903,4100.1,4100.0,0.3501]
[1761624645691,0.43903,4100.1,4100.0,2.15381589]
[1761624646292,0.43897,4100.7,4100.5,0.1379]
[1761624646593,1.21039574,4100.7,4100.6,0.7581]
[1761624647384,0.88219574,4100.7,4100.6,0.7581]
[1761624647589,0.44129574,4100.7,4100.6,0.7581]
[1761624647993,0.88219574,4100.7,4100.6,0.7581]
[1761624650083,1.21039574,4100.7,4100.6,0.3204]
[1761624650283,1.21039574,4100.7,4100.6,0.7581]
[1761624650284,0.00232574,4100.7,4100.6,0.7581]
[1761624650692,0.22242574,4100.7,4100.6,0.7581]
[1761624651086,0.00232574,4100.7,4100.6,0.7581]
[1761624654302,0.39014206,4100.9,4100.8,2.01591589]
[1761624655098,0.43893,4101.1,4101.0,0.896]
[1761624655292,0.44102378,4101.1,4101.0,0.896]
[1761624655899,0.88192378,4101.1,4101.0,0.896]
[1761624656094,1.21012378,4101.1,4101.0,0.896]
[1761624656296,1.20807,4100.6,4100.5,0.00308528]
[1761624656990,0.87987,4100.6,4100.5,0.89908528]
[1761624658093,0.43897,4100.6,4100.5,0.89908528]
[1761624658305,0.22219378,4101.1,4101.0,0.896]
[1761624658499,0.88191378,4101.1,4101.0,0.896]
[1761624659005,1.21011378,4101.1,4101.0,0.896]
[1761624659503,0.87987,4100.6,4100.5,0.57868528]
[1761624659895,0.43897,4100.6,4100.5,0.89908528]
[1761624660297,0.65907,4100.6,4100.5,0.89908528]
[1761624661101,1.20807,4100.6,4100.5,0.00308528]
[1761624661491,1.20807,4100.6,4099.5,0.1379]
[1761624661492,1.20814,4100.0,4099.9,0.3204]
[1761624662004,1.20818,4099.6,4099.5,0.5756]
[1761624662396,0.43913,4099.1,4099.0,0.5756]
[1761624662698,1.20823,4099.1,4099.0,0.89799804]
[1761624663702,1.20823,4099.1,4099.0,0.00199804]
[1761624664104,0.88003,4099.1,4099.0,0.89799804]
[1761624664797,1.22583,4099.1,4099.0,0.89799804]
[1761624665001,0.88003,4099.1,4099.0,0.89799804]
[1761624665303,0.43913,4099.1,4099.0,0.89799804]
[1761624665701,0.65373,4099.1,4099.0,0.89799804]
[1761624666397,1.30117546,4100.5,4099.0,0.89799804]
[1761624666599,0.00209378,4101.1,4100.1,0.5366]
[1761624666600,0.86652,4100.2,4100.1,0.5366]
[1761624666805,0.761,4099.8,4099.7,0.3277]
[1761624666999,1.09744,4100.6,4099.5,0.1374]
[1761624667000,0.3335,4100.7,4100.6,0.2089]
[1761624667304,0.43903,4100.1,4100.0,0.5598]
[1761624667500,1.09727,4101.3,4100.0,0.5598]
[1761624667694,1.20201378,4101.1,4101.0,0.2089]
[1761624667899,0.64917,4100.7,4100.6,0.7501]
[1761624668098,0.00209378,4101.1,4101.0,0.5598]
[1761624668301,0.00209378,4101.1,4101.0,0.8875]
[1761624670199,0.42959378,4101.1,4101.0,0.674]
[1761624670398,0.76309378,4101.1,4101.0,0.3277]
[1761624670598,0.64916,4100.8,4100.7,0.7501]
[1761624671401,0.33559378,4101.1,4101.0,0.99873]
[1761624671402,0.00209378,4101.1,4101.0,0.99873]
[1761624671602,0.00209378,4101.1,4101.0,1.32643]
[1761624672226,0.89397957,4102.8,4101.3,0.3277]
[1761624672506,0.43885,4101.8,4101.5,0.1374]
[1761624672707,0.86635,4101.8,4101.7,0.5366]
[1761624673316,0.86812353,4101.8,4101.7,0.5366]
[1761624673505,0.86812353,4101.8,4101.7,0.7501]
[1761624675602,0.00177353,4101.8,4101.1,0.3277]
[1761624675910,0.77247,4100.7,4100.5,0.3463]
[1761624676114,0.439,4100.3,4100.2,0.7501]
[1761624676302,0.8665,4100.3,4100.2,0.5366]
[1761624676508,1.20003,4100.1,4100.0,0.3277]
[1761624676914,0.86653,4100.1,4100.0,0.5366]
[1761624678019,0.86653,4100.1,4100.0,0.7501]
[1761624678218,0.64923,4100.1,4100.0,0.7501]
[1761624679918,0.64923,4100.1,4100.0,0.8875]
[1761624681215,0.86653,4100.1,4100.0,0.8875]
[1761624681419,1.20003,4100.1,4100.0,0.8875]
[1761624681620,0.64933,4099.2,4099.1,0.5366]
[1761624681914,0.86663,4099.2,4099.1,0.7501]
[1761624684218,0.64933,4099.2,4099.1,0.7501]
[1761624684421,0.43913,4099.2,4099.1,0.7501]
[1761624687024,0.64933,4099.2,4099.1,0.7501]
[1761624688620,0.5437,4100.0,4099.5,0.1374]
[1761624688828,0.43908,4099.6,4099.5,0.8875]
[1761624689126,0.64928,4099.6,4099.5,0.8875]
[1761624689919,1.20008,4099.6,4099.5,0.8875]
[1761624692128,0.86658,4099.6,4099.5,0.8875]
[1761624698731,0.4275,4099.6,4099.5,0.8875]
[1761624699027,0.87993,4100.1,4100.0,0.8984]
[1761624699227,0.87998,4099.6,4099.5,0.5771]
[1761624699622,0.87998,4099.6,4099.5,0.9062]
[1761624701328,0.43908,4099.6,4099.5,0.9062]
[1761624701832,0.66658,4099.6,4099.5,0.9062]
[1761624703046,0.43908,4099.6,4099.5,0.9062]
[1761624704038,0.66658,4099.6,4099.5,0.9062]
[1761624705144,0.43908,4099.6,4099.5,0.9062]
[1761624705351,0.87998,4099.6,4099.5,0.9062]
[1761624705534,1.20448,4099.6,4099.5,0.9062]
[1761624705740,0.87998,4099.6,4099.5,0.9062]
[1761624709745,0.21201283,4100.2,4100.1,0.7688]
[1761624709944,0.65103283,4100.2,4100.1,1.81617074]
[1761624710248,1.40658576,4100.2,4100.1,1.81617074]
[1761624711849,1.73108576,4100.2,4100.1,1.81617074]
[1761624713953,1.40658576,4100.2,4100.1,1.81617074]
[1761624715553,1.73108576,4100.2,4100.1,1.81617074]
[1761624715949,1.09763,4099.9,4099.6,0.3291]
[1761624716253,1.09763,4099.9,4099.4,2.17757074]
[1761624716254,1.20449,4099.5,4099.4,2.17757074]
[1761624716450,1.20449,4099.5,4099.4,2.73207074]
[1761624716752,1.20449,4099.5,4099.4,1.60187074]
[1761624719164,1.74671177,4099.5,4099.4,1.60187074]
[1761624720557,1.74671177,4099.5,4099.4,0.5545]
[1761624720746,1.74671177,4099.5,4099.4,0.3291]
[1761624721249,1.7467375,4099.5,4099.4,0.3291]
[1761624721560,1.7467375,4099.5,4099.4,0.5545]
[1761624722546,1.7467375,4099.5,4099.4,1.81617074]
[1761624723556,1.7467375,4099.5,4099.4,1.60187074]
[1761624723751,0.76363,4099.1,4099.0,1.37139804]
[1761624723954,1.20453,4099.1,4099.0,0.90039804]
[1761624724151,0.88003,4099.1,4099.0,0.90039804]
[1761624724960,0.43913,4099.1,4099.0,0.90039804]
[1761624725256,1.09774,4099.5,4099.0,0.90039804]
[1761624725460,0.66133,4100.1,4100.0,0.9286]
[1761624725653,0.66133,4100.1,4100.0,1.97597074]
[1761624725654,1.20321188,4100.1,4100.0,1.97597074]
[1761624728056,0.98091188,4100.1,4100.0,1.97597074]
[1761624728259,0.43897,4100.6,4100.5,0.4737]
[1761624728564,0.54174728,4100.6,4100.5,0.5565]
[1761624728962,0.54174728,4100.6,4100.5,0.9008]
[1761624729159,0.43896,4100.7,4100.6,0.3443]
[1761624729462,0.98050915,4100.7,4100.6,1.81877074]
[1761624729861,0.65633,4100.1,4100.0,1.87057381]
[1761624730157,0.43906,4099.8,4099.7,1.3018]
[1761624730351,0.87276,4099.8,4099.7,0.4271]
[1761624730664,0.87276,4099.8,4099.7,0.7714]
[1761624735458,0.43906,4099.8,4099.7,0.7714]
[1761624735857,0.65636,4099.8,4099.7,0.7714]
[1761624736365,0.87276,4099.8,4099.7,0.7714]
[1761624736957,1.19286,4099.8,4099.7,1.81877074]
[1761624737158,0.87276,4099.8,4099.7,1.81877074]
[1761624737866,0.65636,4099.8,4099.7,1.81877074]
[1761624738964,1.19289,4099.5,4099.4,1.1249]
[1761624739263,1.19291,4099.3,4099.2,0.3443]
[1761624740461,1.19293,4099.1,4099.0,0.34959804]
[1761624741066,1.19293,4099.1,4099.0,0.69389804]
[1761624741669,1.19293,4099.1,4099.0,0.90299804]
[1761624741861,0.87283,4099.1,4099.0,0.90299804]
[1761624745573,1.63506,4099.8,4099.2,0.4271]
[1761624745773,1.19805557,4099.7,4099.6,1.81877074]
[1761624745963,1.73455557,4099.7,4099.6,1.81877074]
[1761624746772,1.73455557,4099.7,4099.6,1.60967074]
[1761624751977,1.73454195,4099.7,4099.6,1.60967074]
[1761624754677,1.41444195,4099.7,4099.6,1.81877074]
[1761624757673,1.74364195,4099.7,4099.6,0.7714]
[1761624760776,1.19804195,4099.7,4099.6,0.7714]
[1761624761080,1.73674195,4099.7,4099.6,0.3443]
[1761624761273,1.73674195,4099.7,4099.6,0.575]
[1761624770288,1.73674195,4099.7,4099.6,0.3443]
[1761624770486,1.31829,4099.5,4099.4,1.0822]
[1761624770689,1.85996195,4099.5,4099.4,1.0822]
[1761624772189,2.05345908,4099.5,4099.4,1.0822]
[1761624772492,1.85996195,4099.5,4099.4,1.0822]
[1761624773182,1.73456195,4099.5,4099.4,1.8509]
[1761624773385,1.73456195,4099.5,4099.4,3.10812906]
[1761624773386,1.19586195,4099.5,4099.4,3.10812906]
[1761624775392,1.30796936,4100.0,4099.7,0.2307]
[1761624775695,0.43905,4099.9,4099.8,0.5542]
[1761624777500,0.43905,4099.9,4099.8,0.7687]
[1761624784205,0.43908,4099.6,4099.5,0.1369]
[1761624784394,0.43908,4099.6,4099.5,0.3676]
[1761624784588,0.43908,4099.6,4099.5,0.6808]
[1761624787300,0.97472014,4099.6,4099.5,0.6808]
[1761624787597,0.97472014,4099.6,4099.5,0.8898]
[1761624791303,0.43908,4099.6,4099.5,0.8898]
[1761624791501,0.97466289,4099.6,4099.5,0.8898]
[1761624791700,0.43908,4099.6,4099.5,0.8898]
[1761624792597,0.97466251,4099.6,4099.5,0.8898]
[1761624798610,0.97125001,4099.6,4099.5,0.8898]
[1761624800803,0.53217001,4099.6,4099.5,2.14702906]
[1761624801211,0.97125001,4099.6,4099.5,0.8898]
[1761624805912,0.43908,4099.6,4099.5,2.14702906]
[1761624810717,0.43908,4099.6,4099.5,0.8898]
[1761624811206,0.97117949,4099.6,4099.5,0.8898]
[1761624811411,0.97117949,4099.6,4099.5,1.6711]
[1761624817123,0.43908,4099.6,4099.5,1.6711]
[1761624819821,0.43908,4099.6,4099.5,2.71876537]
[1761624825427,0.43908,4099.7,4099.6,0.7635]
[1761624825726,0.8772482,4100.5,4100.4,0.4362]
[1761624825919,0.97125636,4100.5,4100.4,0.4362]
[1761624826119,0.97125636,4100.5,4100.4,0.7635]
[1761624837424,0.43898,4100.6,4100.5,0.4653]
[1761624837638,0.43898,4100.6,4100.5,0.9015]
[1761624839935,0.43896,4100.8,4100.7,0.7635]
[1761624840136,0.43896,4100.8,4100.7,1.81116537]
[1761624841631,0.43886,4101.7,4101.6,0.7635]
[1761624841939,0.97164058,4101.7,4101.6,1.81116537]
[1761624842241,0.97164058,4101.7,4101.6,0.7635]
[1761624843837,0.00177353,4101.8,4101.7,0.5516]
[1761624844036,0.00177353,4101.8,4101.7,0.7635]
[1761624844341,0.43874,4102.8,4102.7,0.5582]
[1761624844639,0.97062826,4102.8,4102.7,0.5582]
[1761624844840,0.97062826,4102.8,4102.7,0.7871]
[1761624845234,0.97342206,4102.8,4102.7,0.79001602]
[1761624846336,0.4415338,4102.8,4102.7,0.79001602]
[1761624847644,0.43865,4103.6,4103.5,0.6861]
[1761624847835,0.96950876,4103.6,4103.5,0.6861]
[1761624848341,0.43865,4103.6,4103.5,0.9133]
[1761624848543,0.44141469,4103.6,4103.5,0.9133]
[1761624849240,0.44141469,4103.6,4103.5,0.6861]
[1761624851444,0.44141469,4103.6,4103.5,0.9133]
[1761624855343,1.48908006,4103.6,4103.5,0.9133]
[1761624858946,1.48908006,4103.6,4103.5,2.0137]
[1761624859842,0.44141469,4103.6,4103.5,2.0137]
[1761624861549,0.44141469,4103.6,4103.5,1.5601]
[1761624861751,1.16541469,4103.6,4103.5,0.9502]
[1761624861947,0.65381,4103.1,4103.0,0.5864]
[1761624863852,0.65381,4103.1,4103.0,0.9133]
[1761624867857,0.43871,4103.1,4103.0,0.9133]
[1761624868155,0.65381,4103.1,4103.0,0.9133]
[1761624868656,0.43871,4103.1,4103.0,0.9133]
[1761624868957,0.65381,4103.1,4103.0,0.9133]
[1761624869155,1.18470935,4103.1,4103.0,0.9133]
[1761624871954,1.40370935,4103.1,4103.0,0.9133]
[1761624873759,0.96960935,4103.1,4103.0,1.96096537]
[1761624874956,0.96573839,4103.1,4103.0,1.96096537]
[1761624875262,0.96718978,4103.1,4103.0,0.9133]
[1761624875561,0.96732317,4103.1,4103.0,0.9133]
[1761624875758,1.19785,4102.7,4102.6,0.78731602]
[1761624875964,1.19785,4102.7,4102.0,0.1321]
[1761624875965,0.64776,4101.7,4101.6,1.75405242]
[1761624876157,0.87695167,4102.4,4102.0,0.1345]
[1761624876363,0.43881,4102.1,4102.0,0.5759]
[1761624876658,0.64771,4102.1,4102.0,0.5759]
[1761624876858,1.1803694,4102.1,4102.0,0.57882754]
[1761624877054,0.9714694,4102.1,4102.0,0.57882754]
[1761624877461,0.9714694,4102.1,4102.0,1.62649291]
[1761624877762,0.9714694,4102.1,4102.0,1.93989291]
[1761624878355,0.43881,4102.1,4102.0,1.93989291]
[1761624880259,1.09692,4102.6,4102.0,1.62649291]
[1761624880463,0.7591,4102.9,4102.8,0.7548]
[1761624880760,1.29092795,4102.9,4102.8,0.7548]
[1761624881161,1.72965795,4102.9,4102.8,0.7548]
[1761624881755,1.7277214,4102.9,4102.8,0.7548]
[1761624882968,0.53182795,4102.9,4102.8,0.7548]
[1761624883265,0.98872,4103.0,4102.9,0.5279]
[1761624883465,0.64762,4103.0,4102.9,0.7548]
[1761624884162,0.43872,4103.0,4102.9,0.7548]
[1761624884967,0.43871,4103.1,4103.0,0.8893]
[1761624886065,0.7591,4103.2,4103.1,0.7548]
[1761624886767,1.1978,4103.2,4103.1,0.7548]
[1761624887563,0.6476,4103.2,4103.1,0.7548]
[1761624887763,0.4387,4103.2,4103.1,0.7548]
[1761624887969,1.1978,4103.2,4103.1,0.5403]
[1761624888460,1.1978,4103.2,4103.1,0.7548]
[1761624890868,1.22458,4103.5,4102.5,0.5759]
[1761624890869,0.43876,4102.6,4102.5,0.5759]
[1761624891072,1.19787,4102.5,4102.4,1.31265242]
[1761624891268,0.9888,4102.2,4102.1,0.4414]
[1761624891462,0.6477,4102.2,4102.1,0.7548]
[1761624891666,0.4388,4102.2,4102.1,0.7548]
[1761624892371,0.4388,4102.2,4102.1,2.01023482]
[1761624894869,0.43879,4102.4,4102.2,0.3134]
[1761624895073,0.43879,4102.4,4102.3,0.7548]
[1761624897884,0.43879,4102.4,4102.3,1.19359]
[1761624899188,0.64767,4102.6,4102.5,0.8893]
[1761624899686,0.98877,4102.6,4102.5,0.8893]
[1761624900187,0.55,4102.6,4102.5,1.32807]
[1761624900684,0.98872,4103.0,4102.9,0.7548]
[1761624900883,1.52004652,4103.0,4102.9,0.7548]
[1761624901088,1.29042652,4103.0,4102.9,0.7548]
[1761624901888,1.72914652,4103.0,4102.9,0.7548]
[1761624902185,1.72914652,4103.0,4102.9,1.19353]
[1761624902387,0.94932652,4103.0,4102.9,1.19353]
[1761624902585,0.418,4103.0,4102.9,1.19353]
[1761624902784,0.7591,4103.0,4102.9,0.7548]
[1761624902991,0.7591,4103.0,4102.9,1.19353]
[1761624903491,0.2089,4103.0,4102.9,1.19353]
[1761624906486,0.5596,4103.3,4103.2,0.4387]
[1761624906690,1.22964594,4103.6,4103.5,0.8993]
[1761624906884,1.76096564,4103.6,4103.5,0.8993]
[1761624907791,1.76096564,4103.6,4103.5,0.7669]
[1761624909693,1.32231564,4103.6,4103.5,0.8993]
[1761624909890,0.00179594,4103.6,4103.5,0.8993]
[1761624910090,0.2185,4104.4,4104.3,0.7669]
[1761624910284,0.43858,4104.3,4104.1,0.3232]
[1761624910486,0.7892,4103.7,4103.6,0.5505]
[1761624910692,1.22784,4103.7,4103.6,0.5505]
[1761624910990,1.22784,4103.7,4103.6,0.2273]
[1761624911192,0.7892,4103.4,4103.3,0.7669]
[1761624911494,0.99735,4103.6,4103.5,0.3488]
[1761624911682,0.99735,4103.6,4103.5,0.8993]
[1761624912394,1.22785,4103.6,4103.5,0.8993]
[1761624913194,0.65715,4103.6,4103.5,0.8993]
[1761624913790,0.99735,4103.6,4103.5,0.8993]
[1761624914793,1.22785,4103.6,4103.5,0.8993]
[1761624914998,1.22785,4103.6,4103.5,0.7669]
[1761624915788,0.43867,4103.4,4103.3,1.0651]
[1761624916001,1.22787,4103.4,4103.3,0.8378]
[1761624916194,1.22787,4103.4,4103.3,1.3883]
[1761624916997,1.22787,4103.4,4103.3,0.8378]
[1761624917701,1.22787,4103.4,4103.3,1.3883]
[1761624918101,1.22787,4103.4,4103.3,1.6047]
[1761624918594,0.43867,4103.4,4103.3,1.6047]
[1761624918791,0.43866,4103.6,4103.5,0.8993]
[1761624920398,0.44092531,4103.7,4103.6,0.3232]
[1761624920602,0.65942531,4103.7,4103.6,0.7669]
[1761624921398,1.22787,4103.4,4103.3,1.3883]
[1761624921597,1.22787,4103.4,4103.3,1.6047]
[1761624921798,0.65717,4103.4,4103.3,1.6047]
[1761624922106,0.43867,4103.4,4103.3,1.6047]
[1761624924108,0.65717,4103.4,4103.3,1.6047]
[1761624924311,0.99737,4103.4,4103.3,1.6047]
[1761624927418,0.65717,4103.4,4103.3,1.6047]
[1761624928607,0.99737,4103.4,4103.3,1.6047]
[1761624930212,1.22787,4103.4,4103.3,1.6047]
[1761624931213,1.22787,4103.4,4103.3,0.8378]
[1761624931412,1.75930259,4103.4,4103.3,0.8378]
[1761624932014,1.75930259,4103.4,4103.3,1.3883]
[1761624932510,1.75930259,4103.4,4103.3,1.6047]
[1761624932708,0.74993259,4103.4,4103.3,1.6047]
[1761624932910,0.65717,4103.4,4103.3,1.6047]
[1761624933214,0.99737,4103.4,4103.3,1.6047]
[1761624933607,0.2185,4103.4,4103.3,2.86013482]
[1761624933806,0.99962531,4103.7,4103.6,0.7669]
[1761624934009,1.76168248,4103.7,4103.6,0.7669]
[1761624935718,1.23012531,4103.7,4103.6,0.7669]
[1761624936217,1.76188161,4103.7,4103.6,0.7669]
[1761624940115,1.23012531,4103.7,4103.6,0.7669]
[1761624940418,1.76207493,4103.7,4103.6,0.7669]
[1761624941120,0.98182531,4103.7,4103.6,0.7669]
[1761624941323,1.19142531,4103.7,4103.6,0.7669]
[1761624941726,1.19142531,4103.7,4103.6,1.81258409]
[1761624942425,1.72335293,4103.7,4103.6,1.59618409]
[1761624942626,1.72335293,4103.7,4103.6,0.5505]
[1761624946037,1.72335293,4103.7,4103.6,1.81488409]
[1761624947427,1.18716,4103.5,4103.4,1.35858409]
[1761624947627,1.18716,4103.5,4103.4,1.58008409]
[1761624947818,1.18716,4103.5,4103.4,1.79878409]
[1761624950118,1.18716,4103.5,4103.4,0.7531]
[1761624950316,0.65516,4103.5,4103.4,0.7531]
[1761624950539,0.97756,4103.5,4103.4,1.79878409]
[1761624950836,1.18716,4103.5,4103.4,1.79878409]
[1761624951929,1.71980221,4103.5,4103.4,1.79878409]
[1761624953333,1.18717,4103.4,4103.3,1.3722]
[1761624953530,1.18717,4103.4,4103.3,1.5909]
[1761624954024,1.18717,4103.4,4103.3,0.7531]
[1761624954329,1.18717,4103.4,4103.3,1.79878409]
[1761624954633,0.65517,4103.4,4103.3,3.10808421]
[1761624958546,0.43867,4103.4,4103.3,3.10808421]
[1761624961240,0.43867,4103.4,4103.3,1.79878409]
[1761624962234,0.43867,4103.4,4103.3,3.10808421]
[1761624963238,0.65517,4103.4,4103.3,3.10808421]
[1761624963544,0.97757,4103.4,4103.3,3.10808421]
[1761624964541,0.97757,4103.4,4103.3,3.54677421]
[1761624964733,0.97757,4103.4,4103.3,3.10808421]
[1761624966744,1.18717,4103.4,4103.3,3.10808421]
[1761624967246,1.18717,4103.4,4103.3,0.7531]
[1761624967743,1.72006581,4103.4,4103.3,0.7531]
[1761624969644,1.72006581,4103.4,4103.0,0.2149]
[1761624969645,1.19011,4103.1,4103.0,0.2149]
[1761624970038,1.72296703,4103.1,4103.0,0.5539]
[1761624970648,1.28425703,4103.1,4103.0,0.8921]
[1761624970947,0.64751,4103.1,4103.0,0.8921]
[1761624971345,0.96831,4103.1,4103.0,0.8921]
[1761624973042,0.00228531,4103.7,4103.0,0.8921]
[1761624973245,0.96826,4103.5,4103.4,0.7626]
[1761624973442,1.06211436,4103.5,4103.4,0.7626]
[1761624973749,0.53251436,4103.5,4103.4,0.7626]
[1761624974050,0.97117436,4103.5,4103.4,0.7626]
[1761624974450,0.97117436,4103.5,4103.4,1.80828409]
[1761624976150,1.17997436,4103.5,4103.4,1.80828409]
[1761624977553,0.97117436,4103.5,4103.4,1.80828409]
[1761624978548,0.97117436,4103.5,4103.4,0.7626]
[1761624978850,0.53251436,4103.5,4103.4,2.24695409]
[1761624979046,0.00228531,4103.7,4103.6,1.20125]
[1761624979750,0.44092531,4103.7,4103.6,0.7626]
[1761624979946,0.97052531,4103.7,4103.6,0.7626]
[1761624980146,1.19232531,4103.7,4103.6,0.7626]
[1761624980447,1.19232531,4103.7,4103.6,0.2149]
[1761624980649,1.72383347,4103.7,4103.6,0.5539]
[1761624980843,1.72383351,4103.7,4103.6,0.5539]
[1761624982052,1.72383351,4103.7,4103.6,0.7626]
[1761624982351,0.43867,4103.4,4103.3,0.2149]
[1761624982554,1.19007,4103.4,4103.3,0.4236]
[1761624982950,1.19007,4103.4,4103.3,0.7626]
[1761624983356,0.64747,4103.4,4103.3,0.7626]
[1761624984246,0.96827,4103.4,4103.3,0.7626]
[1761624985155,1.19007,4103.4,4103.3,0.7626]
[1761624986452,0.00228531,4103.7,4103.3,0.7626]
[1761624986658,1.72155331,4103.6,4103.5,0.7626]
[1761624986858,1.19005,4103.6,4103.5,1.80828409]